[Event "Caplin Hastings Masters 2023-24"]
[Site "Hastings"]
[Date "2024.01.03"]
[Round "7.7"]
[White "Mikhalevski, Victor"]
[Black "Derakhshani, Borna"]
[Result "0-1"]
[ECO "E20"]
[WhiteElo "2524"]
[BlackElo "2380"]
[Annotator "TA"]
[PlyCount "94"]
[EventDate "2023.12.18"]
[EventType "swiss"]
[EventCountry "ENG"]
[SourceTitle "playchess.com"]
[Source "ChessBase"]
[SourceQuality "1"]
[TimeControl "40/6000+30:3000+30"]

{[%evp 10,94,0,0,28,-1,0,0,0,0,6,0,10,0,0,0,0,-15,0,-45,-48,-117,0,0,0,0,33,23,20,0,0,0,0,0,0,-58,-65,-90,-95,-103,-88,-90,-83,-150,-153,-160,-158,-156,-56,-76,-112,-721,-729,-734,-733,-703,-681,-779,-750,-943,-848,-1171,-1175,-1125,-1046,-970,-918,-1179,-1109,-1102,-788,-1189,-1100,-1734,-1779,-2087,-1862,-1651,-1673,-12843,-12843,-12844,-12844,-12846,-12847,-12848,-12848]} 1. c4 {[%emt 0:04:25]} Nf6 {[%emt 0:00:18]} 2. d4 {[%emt 0:00:15][%cal Bd2d4,Bd4d5][%mdl 32]} e6 {[%emt 0:00:04]} 3. Nc3 {[%emt 0:00:08]} Bb4 {[%emt 0:00:05]} 4. f3 {[%emt 0:00:09]} c5 {[%emt 0:00:11]} 5. d5 {[%emt 0:00:10]} d6 {[%emt 0:00:03]} 6. e4 {[%emt 0:00:24]} b5 {[%emt 0:00:05] E20: Nimzo-Indian: 4 g3 and 4 f3.} 7. Bd2 {[%emt 0:00:22]} Bxc3 {[%emt 0:00:58]} 8. Bxc3 {[%emt 0:00:14]} b4 {[%emt 0:00:07] The position is equal.} 9. Bd2 {[%emt 0:00:09]} O-O {[%emt 0:00:30]} 10. Ne2 {[%emt 0:20:09]} Nh5 {[%emt 0:15:37]} 11. Kf2 {[%emt 0:13:36]} f5 {[%emt 0:02:52]} 12. exf5 {[%emt 0:00:13]} exf5 {[%emt 0:23:29] [#]} 13. g3 $146 {[%emt 0:20:16]} ({Predecessor:} 13. Nf4 Nxf4 14. Bxf4 g5 15. Bc1 Nd7 16. f4 Nf6 17. Kg1 Ne4 18. fxg5 f4 19. Bd3 {0-1 Mamedyarov,S (2782)-Caruana,F (2806) Sinquefield Cup 8th 2021 (7)}) 13... Qf6 {[%emt 0:04:43]} 14. Qc1 {[%emt 0:23:37]} f4 {[%emt 0:10:14]} 15. Bg2 {[%emt 0:00:37]} (15. Bxf4 g5 16. Bxd6 Qxf3+ 17. Ke1 Qf2+ 18. Kd1 Qxf1+ 19. Kd2 Qxc1+ 20. Raxc1 Rf3 21. Bxc5 Nf6 22. Bxb4 Na6 $17) ({White should play} 15. Nxf4 $15 Nxf4 16. gxf4 (16. Bxf4 g5 $11)) 15... fxg3+ {[%emt 0:02:37]} (15... Nd7 $17 {And now ...Ne5 would win.} 16. Nxf4 (16. Bxf4 Nxf4 17. Nxf4 Qd4+ 18. Ke2 Re8+ 19. Ne6 Ba6 $17) 16... Ne5 17. Nxh5 Qg6) 16. hxg3 $11 {[%emt 0:00:15]} Qg6 {[%emt 0:00:07]} 17. Rh4 {[%emt 0:07:10]} (17. Qb1 $2 Bf5 18. Qe1 Nd7 $19) 17... Nd7 {[%emt 0:08:55]} 18. g4 {[%emt 0:02:46]} Nhf6 {[%emt 0:06:34][%cal Bh5f6,Bf6e8,Be8c7][%mdl 32]} 19. Kg1 {[%emt 0:02:01]} (19. Nf4 {looks sharper.} Qg5 20. Rh3 Nxg4+ 21. Kg1) 19... Ne5 {[%emt 0:01:17]} 20. Nf4 {[%emt 0:00:13] Repels Qd3} Qf7 {[%emt 0:00:22]} 21. g5 {[%emt 0:05:43]} Ne8 {[%emt 0:00:39]} 22. Kh1 {[%emt 0:01:09]} (22. a3 $11) 22... Nc7 $1 $15 {[%emt 0:04:48]} 23. Qf1 {[%emt 0:05:03]} Bf5 {[%emt 0:00:26]} 24. Re1 {[%emt 0:00:25]} Rae8 {[%emt 0:02:06][%cal Oh7h6]} 25. b3 {[%emt 0:00:41]} a5 {[%emt 0:00:04][%cal Oa5a4]} 26. Bh3 {[%emt 0:00:49] [#]} (26. Qf2 $142) 26... a4 $1 $17 {[%emt 0:01:07][%mdl 512]} 27. Re2 {[%emt 0:01:39]} (27. Qg2 Bxh3) 27... axb3 {[%emt 0:07:21]} 28. axb3 {[%emt 0:00:04] [#]} Re7 {[%emt 0:01:27]} (28... Ra8 $1 $17 {White must now prevent ...Ra2.} 29. Rg2 Ra3) 29. Rh2 $15 {[%emt 0:00:46]} g6 {[%emt 0:00:11][%cal Oe5f3] Strongly threatening ...Nxf3! Black is more active.} 30. Rxh7 $2 {[%emt 0:00:36][%mdl 8192] White does not recover from this.} Qxh7 $19 {[%emt 0:00:32] Black is clearly winning.} 31. Bxf5 {[%emt 0:00:05]} Rxf5 {[%emt 0:00:58]} 32. Rxh7 {[%emt 0:00:21]} Rxh7+ {[%emt 0:00:01][%cal Be7h7,Bh7h4,Bh4g4][%mdl 32]} 33. Kg1 {[%emt 0:00:07]} Rh4 {[%emt 0:03:40]} 34. Nxg6 {[%emt 0:01:25]} Nxf3+ {[%emt 0:06:37]} 35. Kg2 {[%emt 0:00:16]} Rg4+ {[%emt 0:00:13]} (35... Nxd2 {gets mated.} 36. Qxf5) ({Less strong is} 35... Rh2+ 36. Kg3 Rh7 37. Qb1 $16) 36. Kh3 {[%emt 0:01:12]} Nxg5+ {[%emt 0:00:15][%mdl 64] Discovered Attack. A dynamic duo of knights.} (36... Nxd2 {is a self mate.} 37. Qxf5) 37. Kxg4 {[%emt 0:00:06]} Rxf1 {[%emt 0:00:03]} 38. Kxg5 {[%emt 0:00:30][%mdl 4096] Endgame KRN-KBN} Kf7 {[%emt 0:00:39] Hoping for ...Rg1+.} 39. Nh4 {[%emt 0:00:45]} Ke7 {[%emt 0:00:31]} 40. Bf4 {[%emt 0:00:57]} Ne8 {[%emt 0:00:18] ...Rb1 would be deadly.} 41. Ng6+ {[%emt 0:50:26]} Kf7 {[%emt 0:51:28] Threatens to win with ...Rg1+.} 42. Nh4 {[%emt 0:00:22]} Rb1 {[%emt 0:03:14]} 43. Nf5 {[%emt 0:00:00]} Rxb3 {[%emt 0:00:00]} 44. Bxd6 {[%emt 0:00:00]} Nxd6 {[%emt 0:00:00]} 45. Nxd6+ {[%emt 0:00:00]} Ke7 {[%emt 0:00:00]} 46. Ne4 {[%emt 0:00:00] [#]} Rc3 $1 {[%emt 0:00:00][%mdl 576] Promotion} 47. d6+ {[%emt 0:00:00]} (47. Nd2 Rd3) 47... Kd7 {[%emt 0:00:00] A cool game by Derakhshani.   Weighted Error Value: White=0.85/Black=0.16 (very precise)} 0-1

[Event "Caplin Hastings Masters 2023-24"]
[Site "Hastings"]
[Date "2024.01.03"]
[Round "7.8"]
[White "Waldhausen Gordon, Frederick"]
[Black "Ghasi, Ameet K"]
[Result "0-1"]
[ECO "E94"]
[WhiteElo "2338"]
[BlackElo "2509"]
[Annotator "TA"]
[PlyCount "118"]
[EventDate "2023.12.18"]
[EventType "swiss"]
[EventCountry "ENG"]
[SourceTitle "playchess.com"]
[Source "ChessBase"]
[SourceQuality "1"]
[TimeControl "40/6000+30:3000+30"]

{[%evp 16,118,36,43,45,44,50,41,44,18,26,0,5,0,15,0,32,33,32,29,20,10,0,5,27,23,9,0,28,17,21,8,28,18,17,-21,-21,0,0,0,0,-68,-38,-50,-64,-59,-50,-160,-147,-142,-145,-106,0,0,0,0,0,0,0,0,76,75,75,67,96,14,80,14,13,4,31,17,42,0,0,0,0,-57,-58,-758,-762,-749,-746,-1367,-1342,-12837,-508,-12837,-12838,-12838,-12838,-12841,-12840,-12840,-12838,-12847,-12845,-12845,-12845,-12849,-12849,-12849,-12850,-12850,-12844]} 1. d4 {[%emt 0:00:01]} Nf6 {[%emt 0:01:17]} 2. c4 {[%emt 0:00:09]} g6 {[%emt 0:00:07]} 3. Nc3 {[%emt 0:00:03]} Bg7 {[%emt 0:00:06]} 4. e4 {[%emt 0:00:04]} d6 {[%emt 0:00:04]} 5. Nf3 {[%emt 0:00:05]} O-O {[%emt 0:00:10]} 6. Be2 {[%emt 0:00:02]} Nbd7 {[%emt 0:00:06]} 7. O-O {[%emt 0:00:16]} e5 {[%emt 0:00:04]} 8. Be3 {[%emt 0:00:10] 8.Be3 scores better than 8.Re1.} Qe7 {[%emt 0:00:51]} 9. d5 {[%emt 0:02:17]} Ng4 {[%emt 0:02:58] E94: King's Indian: Classical: 6 Be2 e5 7 0-0: Various Black 7th moves.} 10. Bg5 {[%emt 0:00:48]} f6 {[%emt 0:00:33]} 11. Bh4 {[%emt 0:00:28]} Nh6 {[%emt 0:03:42] [#] White is slightly better.} 12. Qd2 $146 {[%emt 0:04:30]} ({Predecessor:} 12. Nd2 Nf7 13. f3 Bh6 14. Bf2 f5 15. b4 Nf6 16. Re1 Nh5 17. Bf1 Nf4 18. Kh1 {½-½ Berdayes Ason,D (2507)-Roselli Mailhe,B (2364) Iberoamerican-ch 9th 2023 (8)}) 12... a5 {[%emt 0:07:23]} 13. Bd1 {[%emt 0:06:07]} Nc5 {[%emt 0:07:03]} 14. Bc2 {[%emt 0:02:11]} Nf7 {[%emt 0:30:32]} 15. Qe2 {[%emt 0:14:25]} Bg4 {[%emt 0:04:11]} (15... g5 $5 16. Bg3 $8 h5 $11) 16. h3 {[%emt 0:02:04]} Bd7 {[%emt 0:01:19]} 17. Nd2 {[%emt 0:06:06]} Bh6 {[%emt 0:00:24]} 18. b3 {[%emt 0:03:58]} Bg5 {[%emt 0:00:27]} 19. Bg3 {[%emt 0:01:21]} Bf4 {[%emt 0:10:08]} 20. a3 {[%emt 0:01:53]} Ng5 {[%emt 0:01:23]} 21. Rae1 {[%emt 0:04:00]} Qg7 {[%emt 0:05:13]} (21... Bxd2 $5 22. Qxd2 Bxh3 $11) 22. b4 {[%emt 0:07:15]} axb4 {[%emt 0:01:03]} 23. axb4 {[%emt 0:00:05]} Na6 {[%emt 0:01:35]} 24. Rb1 {[%emt 0:00:29]} f5 {[%emt 0:07:17]} 25. h4 {[%emt 0:05:27]} Nf7 {[%emt 0:00:57]} 26. exf5 {[%emt 0:03:16]} Bxd2 {[%emt 0:04:29]} 27. Qxd2 {[%emt 0:01:34]} gxf5 {[%emt 0:00:02]} 28. Bd3 {[%emt 0:05:26]} (28. Kh1 $11) 28... Kh8 {[%emt 0:02:38]} 29. Bh2 $1 {[%emt 0:02:49]} Rg8 {[%emt 0:01:39][%csl Gg8][%cal Rg7g2]} 30. f3 {[%emt 0:00:47]} Qf6 {[%emt 0:02:04]} (30... Nh6 {with more complications.} 31. Rf2 f4 32. Ne4 Bf5) 31. Qc2 {[%emt 0:03:04]} (31. h5 $15) 31... Rg7 {[%emt 0:04:30] aiming for ...Rag8.} 32. Kh1 {[%emt 0:02:12]} Rag8 $1 {[%emt 0:04:10]} 33. g3 {[%emt 0:01:37]} Rxg3 {[%emt 0:02:14]} (33... e4 $1 $17 {[%cal Re4d3]} 34. fxe4 Rxg3 35. exf5 (35. Bxg3 $2 Rxg3 36. Qh2 Rxd3 $19) 35... Qd4 36. Bxg3 Rxg3) 34. Bxg3 $11 {[%emt 0:00:42]} Rxg3 {[%emt 0:00:02]} 35. Qh2 {[%emt 0:00:10]} Rg6 {[%emt 0:00:09] White must now prevent ...Rh6.} 36. Nd1 {[%emt 0:05:08]} Rh6 {[%emt 0:03:33]} 37. h5 {[%emt 0:00:08]} Ng5 {[%emt 0:03:37]} (37... c5 $11 {keeps the balance.}) 38. f4 $1 $16 {[%emt 0:00:39]} exf4 {[%emt 0:00:01]} 39. Rxf4 {[%emt 0:00:12] Threatens to win with Ne3.} Qe5 {[%emt 0:01:08] [#] Prevents Ne3} 40. Be2 {[%emt 0:02:26]} ({Better is} 40. Nf2 $1 $16 {Rg1 is the strong threat.} Qe8 41. Kg2 (41. Bxf5 $2 Rxh5 42. Rh4 Rxh4 $19) 41... Rxh5 42. Rh4 Rxh4 43. Qxh4) 40... Ne4 {[%emt 0:00:41] [#]} (40... c6 $11 {remains equal.}) 41. Rb3 {[%emt 1:03:44]} ({White should try} 41. Bf3 $1 $16) 41... c6 $11 {[%emt 0:24:31]} 42. Qh4 {[%emt 0:00:00] Hoping for Nf2.} cxd5 {[%emt 0:01:02]} 43. cxd5 {[%emt 0:00:00] Black should prevent Qd8+.} Nc7 {[%emt 0:03:40][%cal Ba6c7,Bc7e8,Be8f6][%mdl 32]} 44. Qd8+ {[%emt 0:00:00]} (44. Ne3 $5 {[%cal Re3f5]} Ne8 45. Ra3 $16) 44... Ne8 {[%emt 0:11:12] A dynamic duo of knights.} 45. Qxd7 {[%emt 0:00:00]} N4f6 $36 {[%emt 0:00:34][%mdl 2048] Black has good play. The board is on fire.} 46. Qf7 {[%emt 0:00:00]} ({White has to play} 46. Qe6 $1 $11 Qxf4 47. Rc3) 46... Qxe2 $15 {[%emt 0:00:40]} (46... Qxf4 $2 47. Qf8+ (47. Qxb7 $2 Qe4+ 48. Bf3 Rxh5+ 49. Kg2 Rg5+ 50. Kf1 Qc4+ 51. Be2 Qxb3 $19) 47... Ng8 48. Qxe8 $18) 47. Qf8+ $2 {[%emt 0:00:00][%mdl 8192] This costs White the game.} (47. Nf2 $15 Rxh5+ 48. Kg2 Rg5+ 49. Rg3) 47... Ng8 $19 {[%emt 0:00:03] Black is clearly winning.} 48. Nf2 {[%emt 0:00:00]} Rf6 {[%emt 0:04:14]} ({Weaker is} 48... Qxh5+ 49. Rh3 Qg6 50. Rxh6 (50. Rxf5 Nef6 $14) (50. Qxf5 Qxf5 51. Rxf5 Rxh3+ 52. Nxh3 Kg7 $16) 50... Qxh6+ 51. Qxh6 Nxh6 52. Rc4 $16) ({Worse is} 48... Rxh5+ 49. Kg2 Nef6 50. Rg3 $11 (50. Qxd6 Ng4 $15)) 49. Qxf6+ {[%emt 0:01:55]} Nexf6 {[%emt 0:00:22]} 50. Rxf5 {[%emt 0:01:19]} Qf1+ {[%emt 0:01:33]} 51. Kh2 {[%emt 0:00:06]} Ng4+ {[%emt 0:00:31]} 52. Nxg4 {[%emt 0:00:39]} Qxf5 {[%emt 0:00:06]} 53. Ne3 {[%emt 0:01:03]} Qxh5+ {[%emt 0:00:15]} 54. Kg3 {[%emt 0:00:05]} Nf6 {[%emt 0:00:22]} 55. Kf4 {[%emt 0:02:01] Prevents Ne4.} Qe5+ {[%emt 0:00:15]} 56. Kf3 {[%emt 0:00:03]} Nxd5 {[%emt 0:00:07]} 57. Rd3 {[%emt 0:00:20]} Qf4+ {[%emt 0:01:44]} 58. Ke2 {[%emt 0:00:11]} Nxe3 {[%emt 0:00:09]} 59. Rxe3 {[%emt 0:00:04]} Qxb4 {[%emt 0:00:10] Weighted Error Value: White=0.57/Black=0.09 (flawless)} 0-1

[Event "Caplin Hastings Masters 2023-24"]
[Site "Hastings"]
[Date "2024.01.03"]
[Round "7.9"]
[White "Wadsworth, Matthew J"]
[Black "Fischer, Daniel"]
[Result "1/2-1/2"]
[ECO "D38"]
[WhiteElo "2448"]
[BlackElo "2341"]
[Annotator "RC"]
[PlyCount "80"]
[EventDate "2023.12.18"]
[EventType "swiss"]
[EventCountry "ENG"]
[SourceTitle "playchess.com"]
[Source "ChessBase"]
[SourceQuality "1"]
[TimeControl "40/6000+30:3000+30"]

1. d4 {[%emt 0:00:37]} Nf6 {[%emt 0:00:06]} 2. c4 {[%emt 0:00:09]} e6 {[%emt 0:00:06]} 3. Nf3 {[%emt 0:00:09]} d5 {[%emt 0:00:25]} 4. Nc3 {[%emt 0:03:54]} Bb4 {[%emt 0:01:48]} 5. cxd5 {[%emt 0:00:23]} exd5 {[%emt 0:00:10]} 6. Bg5 {[%emt 0:00:07]} h6 {[%emt 0:02:16]} 7. Bh4 {[%emt 0:00:52]} O-O {[%emt 0:01:07]} 8. e3 {[%emt 0:00:25]} Bf5 {[%emt 0:01:15]} 9. Be2 {[%emt 0:00:31]} Nbd7 {[%emt 0:20:39]} 10. Qb3 {[%emt 0:00:42]} Bxc3+ {[%emt 0:03:50]} 11. Qxc3 {[%emt 0:00:10]} g5 {[%emt 0:07:34]} 12. Bg3 {[%emt 0:01:29]} c6 {[%emt 0:09:02]} 13. Nd2 {[%emt 0:02:25]} Ne4 {[%emt 0:02:08]} 14. Nxe4 {[%emt 0:02:47]} Bxe4 {[%emt 0:00:45]} 15. h4 {[%emt 0:11:27]} Kg7 {[%emt 0:07:46]} 16. hxg5 {[%emt 0:29:11]} hxg5 {[%emt 0:00:07]} 17. f4 {[%emt 0:02:29]} f6 {[%emt 0:13:24]} 18. fxg5 {[%emt 0:05:20]} fxg5 {[%emt 0:00:03]} 19. O-O-O {[%emt 0:01:00]} Qe7 {[%emt 0:01:09]} 20. Bg4 {[%emt 0:02:36]} Bf5 {[%emt 0:02:46]} 21. Bf3 {[%emt 0:07:57]} Rae8 {[%emt 0:04:02]} 22. e4 {[%emt 0:04:11]} Bxe4 {[%emt 0:04:13]} 23. Rde1 {[%emt 0:00:49]} Rh8 {[%emt 0:10:38]} 24. Bg4 {[%emt 0:08:27]} Nf6 {[%emt 0:02:02]} 25. Be5 {[%emt 0:01:06]} Kg6 {[%emt 0:03:05]} 26. Bf3 {[%emt 0:02:52]} Rh7 {[%emt 0:03:01]} 27. Ref1 {[%emt 0:02:13]} Rf8 {[%emt 0:03:22]} 28. Qe1 {[%emt 0:06:02]} Rxh1 {[%emt 0:03:34]} 29. Rxh1 {[%emt 0:00:17]} Bxf3 {[%emt 0:00:54]} 30. gxf3 {[%emt 0:02:19]} Nd7 {[%emt 0:00:09]} 31. Qe2 {[%emt 0:02:14]} Nxe5 {[%emt 0:01:20]} 32. dxe5 {[%emt 0:00:02]} Qb4 {[%emt 0:00:51]} 33. Qc2+ {[%emt 0:03:55]} Rf5 {[%emt 0:00:26]} 34. Kb1 {[%emt 0:00:34]} Qc4 {[%emt 0:01:15]} 35. Rh6+ {[%emt 0:03:33]} Kxh6 {[%emt 0:00:05]} 36. Qxf5 {[%emt 0:00:04]} Qf1+ {[%emt 0:00:31]} 37. Kc2 {[%emt 0:00:00]} Qe2+ {[%emt 0:00:19]} 38. Kc1 {[%emt 0:00:17]} Qe1+ {[%emt 0:00:22]} 39. Kc2 {[%emt 0:00:01]} Qe2+ {[%emt 0:00:05]} 40. Kc1 {[%emt 0:00:12]} Qe1+ {[%emt 0:01:42]} 1/2-1/2

[Event "Caplin Hastings Masters 2023-24"]
[Site "Hastings"]
[Date "2024.01.03"]
[Round "7.10"]
[White "Grutter, Tim"]
[Black "Willow, Jonah B"]
[Result "1/2-1/2"]
[ECO "B47"]
[WhiteElo "2342"]
[BlackElo "2427"]
[Annotator "RC"]
[PlyCount "80"]
[EventDate "2023.12.18"]
[EventType "swiss"]
[EventCountry "ENG"]
[SourceTitle "playchess.com"]
[Source "ChessBase"]
[SourceQuality "1"]
[TimeControl "40/6000+30:3000+30"]

1. e4 {[%emt 0:00:06]} c5 {[%emt 0:00:29]} 2. Nf3 {[%emt 0:00:07]} e6 {[%emt 0:00:15]} 3. d4 {[%emt 0:00:21]} cxd4 {[%emt 0:00:05]} 4. Nxd4 {[%emt 0:00:04]} Nf6 {[%emt 0:00:29]} 5. Nc3 {[%emt 0:00:08]} Nc6 {[%emt 0:00:21]} 6. Be2 {[%emt 0:01:38]} Qc7 {[%emt 0:03:22]} 7. Ndb5 {[%emt 0:01:01]} Qb8 {[%emt 0:00:05]} 8. f4 {[%emt 0:00:40]} a6 {[%emt 0:02:22]} 9. e5 {[%emt 0:00:10]} axb5 {[%emt 0:00:04]} 10. exf6 {[%emt 0:00:04]} b4 {[%emt 0:00:17]} 11. fxg7 {[%emt 0:00:08]} Bxg7 {[%emt 0:00:04]} 12. Nb5 {[%emt 0:00:05]} d5 {[%emt 0:02:38]} 13. O-O {[%emt 0:02:28]} O-O {[%emt 0:05:45]} 14. Bd3 {[%emt 0:00:39]} f5 {[%emt 0:05:24]} 15. c3 {[%emt 0:10:55]} bxc3 {[%emt 0:00:30]} 16. bxc3 {[%emt 0:01:13]} Bd7 {[%emt 0:05:24]} 17. Be3 {[%emt 0:07:44]} Na5 {[%emt 0:06:46]} 18. Bd4 {[%emt 0:16:34]} Bxb5 {[%emt 0:02:15]} 19. Bxb5 {[%emt 0:01:15]} Bxd4+ {[%emt 0:06:33]} 20. cxd4 {[%emt 0:12:33]} Qd6 {[%emt 0:07:21]} 21. Qe2 {[%emt 0:04:02]} Rac8 {[%emt 0:05:20]} 22. Rac1 {[%emt 0:05:45]} Kg7 {[%emt 0:11:25]} 23. g3 {[%emt 0:02:20]} Qb6 {[%emt 0:13:29]} 24. Qd3 {[%emt 0:16:03]} Rc7 {[%emt 0:06:05]} 25. Rxc7+ {[%emt 0:00:34]} Qxc7 {[%emt 0:00:02]} 26. Re1 {[%emt 0:03:44]} Qb6 {[%emt 0:04:17]} 27. Rc1 {[%emt 0:01:59]} Nc4 {[%emt 0:02:09]} 28. Bxc4 {[%emt 0:01:55]} Rc8 {[%emt 0:00:07]} 29. Rb1 {[%emt 0:11:53]} dxc4 {[%emt 0:00:45]} 30. Rxb6 {[%emt 0:00:20]} cxd3 {[%emt 0:00:02]} 31. Kf2 {[%emt 0:00:05]} Rc2+ {[%emt 0:05:03]} 32. Ke3 {[%emt 0:00:04]} Rxh2 {[%emt 0:01:05]} 33. Kxd3 {[%emt 0:00:24]} Rxa2 {[%emt 0:00:17]} 34. Rxb7+ {[%emt 0:00:31]} Kg6 {[%emt 0:02:50]} 35. Re7 {[%emt 0:01:28]} Ra3+ {[%emt 0:00:09]} 36. Kc4 {[%emt 0:00:56]} Kf6 {[%emt 0:00:35]} 37. Rxh7 {[%emt 0:00:07]} Rxg3 {[%emt 0:00:03]} 38. Rh6+ {[%emt 0:00:34]} Kf7 {[%emt 0:01:54]} 39. d5 {[%emt 0:00:55]} exd5+ {[%emt 0:00:06]} 40. Kxd5 {[%emt 0:00:04]} Ra3 {[%emt 0:00:11]} 1/2-1/2

[Event "Caplin Hastings Masters 2023-24"]
[Site "Hastings"]
[Date "2024.01.03"]
[Round "7.11"]
[White "Gallagher, Joseph G."]
[Black "Lux, Hugo de Melo"]
[Result "1-0"]
[ECO "C50"]
[WhiteElo "2427"]
[BlackElo "2311"]
[Annotator "RC"]
[PlyCount "81"]
[EventDate "2023.12.18"]
[EventType "swiss"]
[EventCountry "ENG"]
[SourceTitle "playchess.com"]
[Source "ChessBase"]
[SourceQuality "1"]
[TimeControl "40/6000+30:3000+30"]

1. e4 {[%emt 0:04:56]} e5 {[%emt 0:00:13]} 2. Nf3 {[%emt 0:02:16]} Nc6 {[%emt 0:00:45]} 3. Bc4 {[%emt 0:01:58]} Nf6 {[%emt 0:00:06]} 4. d3 {[%emt 0:00:13]} Bc5 {[%emt 0:00:05]} 5. O-O {[%emt 0:03:48]} d6 {[%emt 0:00:20]} 6. a4 {[%emt 0:01:35]} a6 {[%emt 0:02:16]} 7. c3 {[%emt 0:01:49]} Ba7 {[%emt 0:00:06]} 8. Re1 {[%emt 0:01:16]} O-O {[%emt 0:02:18]} 9. h3 {[%emt 0:07:34]} b5 {[%emt 0:14:46]} 10. Bb3 {[%emt 0:04:07]} h6 {[%emt 0:01:01]} 11. Nbd2 {[%emt 0:07:48]} Ne7 {[%emt 0:17:23]} 12. Nf1 {[%emt 0:02:15]} Bd7 {[%emt 0:04:12]} 13. Ng3 {[%emt 0:02:43]} Ng6 {[%emt 0:00:15]} 14. d4 {[%emt 0:04:59]} Qc8 {[%emt 0:11:12]} 15. Be3 {[%emt 0:08:05]} Qb7 {[%emt 0:06:24]} 16. axb5 {[%emt 0:02:31]} axb5 {[%emt 0:00:59]} 17. Rxa7 {[%emt 0:07:15]} Rxa7 {[%emt 0:00:30]} 18. dxe5 {[%emt 0:00:06]} dxe5 {[%emt 0:00:24]} 19. Bxa7 {[%emt 0:00:06]} Qxa7 {[%emt 0:00:06]} 20. Nh5 {[%emt 0:00:05]} Nxh5 {[%emt 0:00:46]} 21. Qxd7 {[%emt 0:00:06]} Qb6 {[%emt 0:17:07]} 22. Qf5 {[%emt 0:15:43]} Nhf4 {[%emt 0:01:55]} 23. Rd1 {[%emt 0:13:45]} b4 {[%emt 0:12:46]} 24. Rd7 {[%emt 0:01:00]} bxc3 {[%emt 0:00:36]} 25. Bxf7+ {[%emt 0:00:31]} Kh8 {[%emt 0:00:57]} 26. bxc3 {[%emt 0:01:17]} c5 {[%emt 0:12:23]} 27. Nxe5 {[%emt 0:11:55]} Ne2+ {[%emt 0:00:38]} 28. Kh2 {[%emt 0:01:28]} Qb8 {[%emt 0:02:38]} 29. Qxg6 {[%emt 0:02:00]} Qxe5+ {[%emt 0:00:05]} 30. g3 {[%emt 0:00:10]} Qxc3 {[%emt 0:00:30]} 31. Qd6 {[%emt 0:01:00]} Rxf7 {[%emt 0:01:44]} 32. Rxf7 {[%emt 0:00:09]} Qa1 {[%emt 0:00:30]} 33. Qf8+ {[%emt 0:01:37]} Kh7 {[%emt 0:00:01]} 34. Kg2 {[%emt 0:00:27]} Qg1+ {[%emt 0:00:57]} 35. Kf3 {[%emt 0:00:01]} Nd4+ {[%emt 0:00:14]} 36. Kg4 {[%emt 0:00:24]} Ne6 {[%emt 0:00:50]} 37. Qd6 {[%emt 0:00:30]} Nd4 {[%emt 0:00:28]} 38. Qe5 {[%emt 0:00:20]} Qd1+ {[%emt 0:00:29]} 39. f3 {[%emt 0:00:09]} h5+ {[%emt 0:00:34]} 40. Kxh5 {[%emt 0:00:30]} Ne6 {[%emt 0:00:13]} 41. Qxe6 {[%emt 0:50:37]} 1-0

[Event "Caplin Hastings Masters 2023-24"]
[Site "Hastings"]
[Date "2024.01.03"]
[Round "7.12"]
[White "Vestby-Ellingsen, Mads"]
[Black "Boyer, Mahel"]
[Result "1-0"]
[ECO "B15"]
[WhiteElo "2329"]
[BlackElo "2427"]
[Annotator "RC"]
[PlyCount "105"]
[EventDate "2023.12.18"]
[EventType "swiss"]
[EventCountry "ENG"]
[SourceTitle "playchess.com"]
[Source "ChessBase"]
[SourceQuality "1"]
[TimeControl "40/6000+30:3000+30"]

1. e4 {[%emt 0:00:10]} c6 {[%emt 0:06:17]} 2. d4 {[%emt 0:00:18]} d5 {[%emt 0:00:06]} 3. Nc3 {[%emt 0:00:19]} dxe4 {[%emt 0:00:06]} 4. Nxe4 {[%emt 0:00:08]} Nf6 {[%emt 0:00:08]} 5. Nxf6+ {[%emt 0:00:13]} exf6 {[%emt 0:00:07]} 6. Be3 {[%emt 0:00:35]} Na6 {[%emt 0:01:31]} 7. a3 {[%emt 0:04:41]} Nc7 {[%emt 0:02:46]} 8. Bd3 {[%emt 0:00:28]} Qd5 {[%emt 0:03:40]} 9. Qf3 {[%emt 0:12:18]} Qxf3 {[%emt 0:15:55]} 10. Nxf3 {[%emt 0:00:57]} Bg4 {[%emt 0:00:21]} 11. Nh4 {[%emt 0:01:17]} Nd5 {[%emt 0:00:54]} 12. Bd2 {[%emt 0:00:56]} O-O-O {[%emt 0:10:37]} 13. O-O {[%emt 0:02:56]} Bd6 {[%emt 0:00:04]} 14. g3 {[%emt 0:06:26]} g6 {[%emt 0:09:34]} 15. Rfe1 {[%emt 0:05:24]} Rhe8 {[%emt 0:00:56]} 16. Kg2 {[%emt 0:01:14]} Be6 {[%emt 0:01:47]} 17. Nf3 {[%emt 0:09:31]} h5 {[%emt 0:18:56]} 18. c4 {[%emt 0:26:25]} Ne7 {[%emt 0:02:31]} 19. Bc3 {[%emt 0:00:10]} g5 {[%emt 0:09:05]} 20. Rad1 {[%emt 0:16:44]} Bc7 {[%emt 0:05:32]} 21. b3 {[%emt 0:07:35]} h4 {[%emt 0:04:47]} 22. Rd2 {[%emt 0:02:08]} h3+ {[%emt 0:01:46]} 23. Kf1 {[%emt 0:00:09]} Bb6 {[%emt 0:02:57]} 24. d5 {[%emt 0:05:57]} cxd5 {[%emt 0:04:57]} 25. c5 {[%emt 0:00:07]} Bxc5 {[%emt 0:02:44]} 26. Bxf6 {[%emt 0:00:08]} Bxa3 {[%emt 0:00:52]} 27. Rc2+ {[%emt 0:02:39]} Kb8 {[%emt 0:02:06]} 28. Nxg5 {[%emt 0:00:10]} Bb4 {[%emt 0:00:34]} 29. Nxe6 {[%emt 0:01:17]} fxe6 {[%emt 0:00:16]} 30. Rxe6 {[%emt 0:00:07]} Nc6 {[%emt 0:00:20]} 31. Rce2 {[%emt 0:00:38]} Rxe6 {[%emt 0:00:04]} 32. Rxe6 {[%emt 0:00:06]} Rf8 {[%emt 0:00:24]} 33. g4 {[%emt 0:00:58]} Nd8 {[%emt 0:00:45]} 34. Be5+ {[%emt 0:00:38]} Kc8 {[%emt 0:00:03]} 35. Rf6 {[%emt 0:00:55]} Kd7 {[%emt 0:00:42]} 36. Bf5+ {[%emt 0:01:42]} Ke7 {[%emt 0:00:30]} 37. g5 {[%emt 0:01:39]} Nc6 {[%emt 0:00:52]} 38. Rxf8 {[%emt 0:00:47]} Kxf8 {[%emt 0:00:01]} 39. Bb2 {[%emt 0:00:31]} d4 {[%emt 0:00:41]} 40. Ke2 {[%emt 0:00:16]} Bd6 {[%emt 0:01:25]} 41. Bxh3 {[%emt 0:03:40]} Bxh2 {[%emt 0:02:52]} 42. Kf3 {[%emt 0:05:35]} Ke7 {[%emt 0:12:37]} 43. Ke4 {[%emt 0:02:25]} Bg1 {[%emt 0:01:04]} 44. f4 {[%emt 0:01:53]} Be3 {[%emt 0:01:56]} 45. Bf1 {[%emt 0:08:37]} Kf7 {[%emt 0:03:24]} 46. Bb5 {[%emt 0:07:10]} Na5 {[%emt 0:04:05]} 47. b4 {[%emt 0:05:10]} a6 {[%emt 0:00:01]} 48. Bxa6 {[%emt 0:01:42]} bxa6 {[%emt 0:00:10]} 49. bxa5 {[%emt 0:00:07]} Bd2 {[%emt 0:00:32]} 50. Bxd4 {[%emt 0:00:10]} Bxa5 {[%emt 0:00:04]} 51. f5 {[%emt 0:00:09]} Bb4 {[%emt 0:00:52]} 52. g6+ {[%emt 0:00:12]} Ke7 {[%emt 0:00:08]} 53. Kd5 {[%emt 0:00:14]} 1-0